bitfinex/quotes_ETHUSD_20230117
["timestamp","ask_amount","ask_price","bid_price","bid_amount"]
[1673952409559,3.86e-06,1560.7,1560.6,26.93225517]
[1673952410062,3.86e-06,1560.7,1560.6,28.16825517]
[1673952410224,3.86e-06,1560.7,1560.6,32.73363966]
[1673952410416,3.86e-06,1560.7,1560.6,32.73772028]
[1673952410765,3.86e-06,1560.7,1560.6,33.69839618]
[1673952414332,3.86e-06,1560.7,1560.6,32.73772028]
[1673952414546,3.86e-06,1560.7,1560.6,33.69839618]
[1673952415125,3.86e-06,1560.7,1560.6,32.61849912]
[1673952415340,3.86e-06,1560.7,1560.6,26.93634335]
[1673952416386,3.86e-06,1560.7,1560.6,26.60430341]
[1673952417075,3.86e-06,1560.7,1560.6,23.48767934]
[1673952419289,3.86e-06,1560.7,1560.6,26.60430341]
[1673952419900,3.86e-06,1560.7,1560.6,29.13301925]
[1673952420164,3.86e-06,1560.7,1560.6,33.89890174]
[1673952421808,3.86e-06,1560.7,1560.6,35.33991559]
[1673952422017,0.06208865,1560.9,1560.7,0.00199614]
[1673952422243,0.06208865,1560.9,1560.8,31.20650407]
[1673952422383,0.06208865,1560.9,1560.8,37.03610824]
[1673952422592,0.06208865,1560.9,1560.8,38.32750027]
[1673952422803,0.06208865,1560.9,1560.8,39.8872909]
[1673952423448,0.06208865,1560.9,1560.8,38.6612909]
[1673952426541,0.06208865,1560.9,1560.8,37.70193881]
[1673952428420,0.06208865,1560.9,1560.8,39.55425096]
[1673952428629,0.06208865,1560.9,1560.8,38.92693881]
[1673952429602,0.06208865,1560.9,1560.8,37.70193881]
[1673952431286,0.06208865,1560.9,1560.8,38.6612909]
[1673952432407,0.06208865,1560.9,1560.8,37.70193881]
[1673952434332,0.06208865,1560.9,1560.8,37.36989887]
[1673952434500,0.06208865,1560.9,1560.8,38.93793881]
[1673952436065,0.06208865,1560.9,1560.8,38.81871009]
[1673952436280,0.06208865,1560.9,1560.8,38.99136498]
[1673952437149,0.06208865,1560.9,1560.8,38.99136646]
[1673952438640,0.06208865,1560.9,1560.8,37.42332652]
[1673952438852,0.06208865,1560.9,1560.8,37.59595047]
[1673952439070,0.06208865,1560.9,1560.8,38.83195047]
[1673952439544,0.06208865,1560.9,1560.8,37.5959838]
[1673952439748,0.06208865,1560.9,1560.8,37.42332652]
[1673952439959,0.06208865,1560.9,1560.8,37.59596013]
[1673952441075,0.06208865,1560.9,1560.8,37.42332652]
[1673952441224,0.06208865,1560.9,1560.8,33.21916044]
[1673952443067,0.05945137,1560.9,1560.8,33.21916044]
[1673952444589,0.05945137,1560.9,1560.8,33.39174287]
[1673952445005,0.05945137,1560.9,1560.8,35.9081349]
[1673952450527,0.05945137,1560.9,1560.8,34.94878281]
[1673952450743,0.05945137,1560.9,1560.8,39.55386685]
[1673952451866,0.05945137,1560.9,1560.8,40.51321894]
[1673952454486,0.05945137,1560.9,1560.8,39.28821894]
[1673952454921,0.05945137,1560.9,1560.8,40.72842831]
[1673952455128,0.05945137,1560.9,1560.8,39.28821894]
[1673952456514,0.05945137,1560.9,1560.8,40.72842831]
[1673952457233,0.05945137,1560.9,1560.8,39.76907622]
[1673952457452,0.05945137,1560.9,1560.8,40.72847564]
[1673952458750,0.05945137,1560.9,1560.8,47.07107638]
[1673952459433,0.05945137,1560.9,1560.8,39.76907622]
[1673952459668,0.05945137,1560.9,1560.8,47.07101989]
[1673952460393,0.05945137,1560.9,1560.8,45.63081052]
[1673952462639,0.05945137,1560.9,1560.8,47.07105876]
[1673952463211,0.05945137,1560.9,1560.8,45.63081052]
[1673952463456,0.07810538,1561.0,1560.8,58.26000321]
[1673952463457,0.05814796,1561.0,1560.8,58.26000321]
[1673952463630,0.05814796,1561.0,1560.9,18.72787133]
[1673952463841,0.05814796,1561.0,1560.9,40.41351403]
[1673952464106,0.05814796,1561.0,1560.9,40.74555397]
[1673952464528,0.05814796,1561.0,1560.9,42.66456711]
[1673952464899,0.05814796,1561.0,1560.9,40.74555397]
[1673952465139,0.05814796,1561.0,1560.9,42.6645055]
[1673952466363,0.05814796,1561.0,1560.9,40.2645428]
[1673952467140,0.05814796,1561.0,1560.9,40.4945428]
[1673952468192,0.00814796,1561.0,1560.9,40.4945428]
[1673952468950,0.00814796,1561.0,1560.9,48.7315428]
[1673952470119,0.00814796,1561.0,1560.9,48.72842139]
[1673952470295,0.00814796,1561.0,1560.9,49.83492337]
[1673952470514,0.00814796,1561.0,1560.9,44.7852988]
[1673952471406,0.00814796,1561.0,1560.9,48.72781797]
[1673952473920,0.00814796,1561.0,1560.9,52.36378067]
[1673952474617,0.00814796,1561.0,1560.9,55.87631315]
[1673952474834,0.00814796,1561.0,1560.9,49.96381797]
[1673952477892,0.00814796,1561.0,1560.9,43.87141536]
[1673952478738,0.00814796,1561.0,1560.9,45.79036689]
[1673952479645,0.00814796,1561.0,1560.9,44.78936689]
[1673952479855,0.00814796,1561.0,1560.9,42.64041536]
[1673952480066,0.00814796,1561.0,1560.9,26.53026965]
[1673952480607,0.00814796,1561.0,1560.9,27.0093751]
[1673952480821,0.00814796,1561.0,1560.9,27.34141504]
[1673952482278,0.00814796,1561.0,1560.9,27.0093751]
[1673952482623,0.00814796,1561.0,1560.9,29.26036657]
[1673952482829,0.00814796,1561.0,1560.9,33.1906965]
[1673952483217,0.00814796,1561.0,1560.9,31.27174497]
[1673952483677,0.00814796,1561.0,1560.9,31.26974497]
[1673952483891,0.00814796,1561.0,1560.9,31.27174497]
[1673952484539,0.00814796,1561.0,1560.9,27.34141504]
[1673952486272,0.00814796,1561.0,1560.9,29.26036657]
[1673952487153,0.00814796,1561.0,1560.9,36.00136657]
[1673952487331,0.03576223,1561.1,1561.0,20.41441204]
[1673952487542,0.03576223,1561.1,1561.0,31.35436818]
[1673952487792,0.03576223,1561.1,1561.0,36.69904506]
[1673952487950,0.03576223,1561.1,1561.0,36.36700512]
[1673952488158,0.03576223,1561.1,1561.0,37.66700512]
[1673952488433,0.03576223,1561.1,1561.0,37.99904506]
[1673952492613,0.03576223,1561.1,1561.0,43.37971988]
[1673952492798,0.03576223,1561.1,1561.0,37.99904506]
[1673952493999,0.03576223,1561.1,1561.0,37.66700512]
[1673952494418,0.03576223,1561.1,1561.0,37.99904506]
[1673952494565,0.03576223,1561.1,1561.0,36.77004506]
[1673952494932,0.03576223,1561.1,1561.0,40.71254509]
[1673952497764,0.03576223,1561.1,1561.0,33.65905375]
[1673952498012,0.03576223,1561.1,1561.0,28.64641681]
[1673952498334,0.03576223,1561.1,1561.0,28.31437687]
[1673952500267,0.03576223,1561.1,1561.0,27.8351446]
[1673952500481,1.22976223,1561.1,1561.0,29.27390293]
[1673952500694,1.22976223,1561.1,1561.0,27.8351446]
[1673952501793,0.03576223,1561.1,1561.0,27.8351446]
[1673952501968,1.22976223,1561.1,1561.0,27.8351446]
[1673952502323,0.03576223,1561.1,1561.0,27.8351446]
[1673952502537,0.03576223,1561.1,1561.0,29.27390293]
[1673952502852,0.03576223,1561.1,1561.0,27.8351446]
[1673952505701,1.22976223,1561.1,1561.0,24.71852053]
[1673952506016,1.22976223,1561.1,1561.0,24.5459381]
[1673952507118,0.03576223,1561.1,1561.0,24.5459381]
[1673952508731,0.03576223,1561.1,1561.0,23.58641204]
[1673952509128,0.03576223,1561.1,1561.0,24.5459381]
[1673952509335,0.03233984,1561.1,1561.0,24.5459381]
[1673952510097,0.03233984,1561.1,1561.0,23.58641204]
[1673952511331,0.03233984,1561.1,1561.0,23.58441204]
[1673952511579,0.03233984,1561.1,1561.0,23.58641204]
[1673952516841,0.03233984,1561.1,1561.0,28.45176159]
[1673952517012,0.03233984,1561.1,1561.0,29.43561623]
[1673952517224,0.03233984,1561.1,1561.0,29.2630338]
[1673952517411,0.03233984,1561.1,1561.0,29.43561623]
[1673952518398,0.03233984,1561.1,1561.0,30.06293047]
[1673952519747,0.03233984,1561.1,1561.0,29.10357629]
[1673952520190,0.03233984,1561.1,1561.0,30.06289641]
[1673952522044,0.03233984,1561.1,1561.0,28.62413808]
[1673952522297,0.03233984,1561.1,1561.0,30.06289641]
[1673952523615,0.03233984,1561.1,1561.0,28.62413808]
[1673952523841,0.03233984,1561.1,1561.0,30.06289641]
[1673952524560,0.03233984,1561.1,1561.0,30.39493635]
[1673952524935,0.03233984,1561.1,1561.0,37.7672424]
[1673952525518,0.03233984,1561.1,1561.0,39.20621674]
[1673952525922,0.03233984,1561.1,1561.0,37.7672424]
[1673952529760,0.03329432,1561.3,1561.1,1.00628833]
[1673952529976,0.03329432,1561.3,1561.2,29.79772869]
[1673952530129,0.03329432,1561.3,1561.2,34.80714475]
[1673952530499,0.03329432,1561.3,1561.2,33.3682097]
[1673952530715,0.03329432,1561.3,1561.2,34.6682097]
[1673952531438,0.03329432,1561.3,1561.2,36.10700339]
[1673952532367,0.03329432,1561.3,1561.2,34.6682097]
[1673952534332,0.03329432,1561.3,1561.2,34.33616976]
[1673952534565,0.03329432,1561.3,1561.2,34.6682097]
[1673952536479,0.03329432,1561.3,1561.2,33.60852644]
[1673952537602,0.03329432,1561.3,1561.2,14.17664]
[1673952537928,1.74789432,1561.3,1561.2,14.17664]
[1673952539074,1.74789432,1561.3,1561.2,17.17664]
[1673952539588,1.74789432,1561.3,1561.2,10.77132]
[1673952539716,2.29743382,1561.3,1561.2,7.77132]
[1673952541392,1.81683382,1561.3,1561.2,7.77132]
[1673952544545,0.03329432,1561.3,1561.2,14.17664]
[1673952544701,1.22729432,1561.3,1561.2,14.17664]
[1673952546213,0.03329432,1561.3,1561.2,14.17664]
[1673952546587,1.22729432,1561.3,1561.2,14.17664]
[1673952551907,0.03329432,1561.3,1561.2,14.17664]
[1673952556222,1.22729432,1561.3,1561.2,14.17664]
[1673952557486,0.03329432,1561.3,1561.2,14.17664]
[1673952557882,0.03329432,1561.3,1561.2,20.58196]
[1673952558960,0.02962011,1561.3,1561.2,20.58196]
[1673952569024,0.02962011,1561.3,1561.2,26.2468952]
[1673952569266,0.02962011,1561.3,1561.2,30.20594963]
[1673952569591,0.02962011,1561.3,1561.2,30.43747983]
[1673952570325,0.02962011,1561.3,1561.2,29.59247151]
[1673952570692,0.07567094,1561.4,1561.3,1.0]
[1673952570900,0.07567094,1561.4,1561.3,11.32660588]
[1673952571207,0.07567094,1561.4,1561.3,24.20242588]
[1673952571420,0.07567094,1561.4,1561.3,24.43395608]
[1673952572552,0.07567094,1561.4,1561.3,30.83886608]
[1673952573121,0.07567094,1561.4,1561.3,32.06386608]
[1673952573951,0.07567094,1561.4,1561.3,31.10497058]
[1673952574316,0.07567094,1561.4,1561.3,32.06386608]
[1673952575402,0.07567094,1561.4,1561.3,31.10497058]
[1673952575611,0.07567094,1561.4,1561.3,28.87997058]
[1673952581493,0.07567094,1561.4,1561.3,28.64844038]
[1673952582930,0.07567094,1561.4,1561.3,30.56594889]
[1673952584627,0.07567094,1561.4,1561.3,30.23390895]
[1673952590451,0.07567094,1561.4,1561.3,31.19280445]
[1673952593985,0.07567094,1561.4,1561.3,28.99790895]
[1673952594677,0.07344109,1561.4,1561.3,28.99790895]
[1673952595670,0.07344109,1561.4,1561.3,29.95680445]
[1673952596822,0.07344109,1561.4,1561.3,28.99790895]
[1673952597169,0.07344109,1561.4,1561.3,29.95680445]
[1673952597554,0.07344109,1561.4,1561.3,31.19280445]
[1673952603525,0.07344109,1561.4,1561.3,32.63159814]
[1673952604215,0.07344109,1561.4,1561.3,31.67270264]
[1673952604428,0.07344109,1561.4,1561.3,31.67070264]
[1673952604678,0.07344109,1561.4,1561.3,31.67270264]
[1673952605460,0.07344109,1561.4,1561.3,33.59109422]
[1673952606108,0.07344109,1561.4,1561.3,31.67270264]
[1673952606318,0.07344109,1561.4,1561.3,33.59109422]
[1673952606578,0.07344109,1561.4,1561.3,31.67270264]
[1673952607265,0.07344109,1561.4,1561.3,33.59109422]
[1673952608250,0.07344109,1561.4,1561.3,31.67270264]
[1673952608767,0.07344109,1561.4,1561.3,37.5323258]
[1673952609671,0.07344109,1561.4,1561.3,38.97251637]
[1673952610302,0.07344109,1561.4,1561.3,37.5323258]
[1673952610537,0.07344109,1561.4,1561.3,38.01389692]
[1673952610538,1.09e-06,1561.4,1561.3,38.01389692]
[1673952610731,0.08296388,1561.5,1561.4,1.0]
[1673952610924,0.08296388,1561.5,1561.4,11.7277292]
[1673952611178,0.07952854,1561.5,1561.4,39.03747493]
[1673952611396,0.07952854,1561.5,1561.4,32.08708813]
[1673952611801,0.07952854,1561.5,1561.4,34.0072292]
[1673952612566,0.07952854,1561.5,1561.4,32.08708813]
[1673952615708,0.07952854,1561.5,1561.4,31.08708813]
[1673952615924,0.07952854,1561.5,1561.4,32.04663017]
[1673952620317,0.07952854,1561.5,1561.4,32.65512807]
[1673952623081,0.07952854,1561.5,1561.4,33.61459192]
[1673952623257,0.07952854,1561.5,1561.4,32.65512807]
[1673952623606,0.07952854,1561.5,1561.4,32.32308813]
[1673952624009,0.07952854,1561.5,1561.4,32.65512807]
[1673952627740,8.54e-06,1561.5,1561.4,32.65512807]
[1673952627936,0.09154353,1561.7,1561.4,32.65512807]
[1673952628091,0.09154353,1561.7,1561.5,10.34160182]
[1673952628293,0.09154353,1561.7,1561.6,28.73134407]
[1673952628563,0.09154353,1561.7,1561.6,29.14681264]
[1673952628773,0.09154353,1561.7,1561.6,32.14681264]
[1673952629086,3.53e-06,1561.7,1561.6,33.71485258]
[1673952629261,0.08673411,1561.8,1561.7,1.0]
[1673952629466,0.08673411,1561.8,1561.7,28.51444511]
[1673952629675,0.08673411,1561.8,1561.7,22.62527857]
[1673952629892,0.08673411,1561.8,1561.7,22.27581]
[1673952630120,0.08673411,1561.8,1561.7,12.87254]
[1673952630293,2.76806905,1561.8,1561.7,12.87254]
[1673952630749,3.40114019,1561.8,1561.7,12.87254]
[1673952631996,3.40114019,1561.8,1561.7,19.27581]
[1673952632319,4.05276422,1561.8,1561.7,19.27581]
[1673952633267,4.39741506,1561.8,1561.7,19.27581]
[1673952634078,2.9752364,1561.8,1561.7,19.27581]
[1673952641177,0.43138495,1561.8,1561.7,22.27581]
[1673952643150,0.43138495,1561.8,1561.7,28.35628417]
[1673952643370,0.43138495,1561.8,1561.7,28.67656078]
[1673952645485,0.43138495,1561.8,1561.7,29.63557182]
[1673952653513,0.09008822,1561.9,1561.7,29.63557182]
[1673952653731,0.09008822,1561.9,1561.8,25.32520407]
[1673952653895,0.09008822,1561.9,1561.8,28.89906415]
[1673952654088,0.09008822,1561.9,1561.8,25.39120407]
[1673952663368,1.28408822,1561.9,1561.8,22.27458]
[1673952665763,0.09008822,1561.9,1561.8,22.27458]
[1673952666031,1.28408822,1561.9,1561.8,22.27458]
[1673952666241,1.28408822,1561.9,1561.8,15.87172]
[1673952666412,5.06287687,1561.9,1561.8,12.87172]
[1673952666605,6.09710624,1561.9,1561.8,12.87172]
[1673952667709,7.9996849,1561.9,1561.8,12.87172]
[1673952667870,7.5192849,1561.9,1561.8,12.87172]
[1673952669931,5.0902849,1561.9,1561.8,12.87172]
[1673952674440,4.13515566,1561.9,1561.8,12.86972]
[1673952674589,4.06915566,1561.9,1561.8,12.87172]
[1673952674799,5.02431104,1561.9,1561.8,12.87172]
[1673952675088,5.09031104,1561.9,1561.8,12.87172]
[1673952675227,4.13515566,1561.9,1561.8,12.87172]
[1673952675437,4.07115566,1561.9,1561.8,12.86972]
[1673952675650,4.06915566,1561.9,1561.8,12.87172]
[1673952680007,5.30415566,1561.9,1561.8,12.87172]
[1673952680197,5.37015566,1561.9,1561.8,12.87172]
[1673952682158,7.49639387,1561.9,1561.8,0.066]
[1673952682419,9.69708854,1561.9,1561.7,0.06381964]
[1673952682592,9.56332236,1561.8,1561.6,9.46720964]
[1673952682801,3.77081621,1561.7,1561.6,6.46720964]
[1673952683049,5.20360156,1561.7,1561.6,6.46720964]
[1673952683365,5.26960156,1561.7,1561.6,6.46720964]
[1673952683581,6.37519948,1561.7,1561.6,6.46720964]
[1673952684052,4.94241413,1561.7,1561.6,6.46720964]
[1673952684267,4.87641413,1561.7,1561.6,6.46720964]
[1673952685526,2.33259792,1561.7,1561.6,19.27456964]
[1673952685772,1.227,1561.7,1561.6,19.27456964]
[1673952688254,3.35491115,1561.8,1561.6,19.27456964]
[1673952688509,1.231,1561.7,1561.6,19.27456964]
[1673952689955,3.35491115,1561.8,1561.6,19.27456964]
[1673952690178,3.28891115,1561.8,1561.6,19.27456964]
[1673952690399,0.900969,1561.8,1561.6,19.27456964]
[1673952690609,1.8561258,1561.8,1561.6,19.27456964]
[1673952693563,0.9551568,1561.8,1561.6,19.27456964]
[1673952693753,0.9551568,1561.8,1561.6,21.87447441]
[1673952693962,2.54387414,1561.8,1561.6,21.87447441]
[1673952696312,0.9551568,1561.8,1561.6,21.87447441]
[1673952696522,0.9551568,1561.8,1561.6,19.27456964]
[1673952696709,2.54388389,1561.8,1561.6,19.27456964]
[1673952699409,3.97666924,1561.8,1561.6,19.27456964]
[1673952700615,2.54388389,1561.7,1561.6,19.27456964]
[1673952707498,2.45394215,1561.8,1561.6,19.27456964]
[1673952707869,2.38794215,1561.8,1561.6,19.27456964]
[1673952708079,3.97665921,1561.8,1561.6,19.27456964]
[1673952713300,2.54387386,1561.8,1561.6,19.97949573]
[1673952716046,3.97665921,1561.8,1561.6,19.97949573]
[1673952716255,3.97665921,1561.8,1561.6,19.27456964]
[1673952716568,2.54387386,1561.8,1561.6,19.27456964]
[1673952717836,2.54587386,1561.8,1561.6,19.27256964]
[1673952718191,2.54387386,1561.8,1561.6,19.27456964]
[1673952723338,1.58871706,1561.8,1561.6,26.01931055]
[1673952723546,1.59071706,1561.8,1561.7,27.92836513]
[1673952723735,1.58871706,1561.8,1561.7,28.31259284]
[1673952724210,1.58871706,1561.8,1561.7,29.61259284]
[1673952727557,1.58871706,1561.8,1561.7,30.57160388]
[1673952728695,0.09008822,1561.9,1561.8,1.66122112]
[1673952728885,0.09008822,1561.9,1561.8,37.30996531]
[1673952729093,0.09008822,1561.9,1561.8,39.12359916]
[1673952729324,0.09008822,1561.9,1561.8,42.62359916]
[1673952729650,0.09008822,1561.9,1561.8,46.56739655]
[1673952729860,0.09008822,1561.9,1561.8,42.96793837]
[1673952730386,0.10581086,1562.1,1561.8,38.02960933]
[1673952730597,0.10581086,1562.1,1562.0,2.234]
[1673952730790,0.10581086,1562.1,1562.0,24.55674407]
[1673952731160,0.10581086,1562.1,1562.0,27.62056371]
[1673952731529,0.10581086,1562.1,1562.0,28.92056371]
[1673952733164,0.11339744,1562.2,1562.1,1.0]
[1673952733407,7.44e-06,1562.2,1562.1,29.03374443]
[1673952733522,7.44e-06,1562.2,1562.1,29.85747007]
[1673952733872,7.44e-06,1562.2,1562.1,25.92960401]
[1673952734095,7.44e-06,1562.2,1562.1,27.22960401]
[1673952734420,7.44e-06,1562.2,1562.1,27.23368071]
[1673952734988,7.44e-06,1562.2,1562.1,30.73368071]
[1673952735198,0.12103108,1562.3,1562.1,27.23368071]
[1673952735404,0.12103108,1562.3,1562.2,21.10643214]
[1673952735677,0.12103108,1562.3,1562.2,24.17025178]
[1673952735919,0.12103108,1562.3,1562.2,24.50229172]
[1673952736295,0.12103108,1562.3,1562.2,25.80229172]
[1673952740301,0.12103108,1562.3,1562.2,24.56629172]
[1673952740470,0.12103108,1562.3,1562.2,21.44966765]
[1673952740680,0.12103108,1562.3,1562.2,26.62288765]
[1673952741311,0.12103108,1562.3,1562.2,26.29084771]
[1673952742101,1.08e-06,1562.3,1562.2,30.97551172]
[1673952742321,0.0448029,1562.4,1562.3,1.0]
[1673952742476,0.0448029,1562.4,1562.3,27.87570524]
[1673952742840,0.0448029,1562.4,1562.3,31.27156482]
[1673952743220,0.0448029,1562.4,1562.3,32.57156482]
[1673952745374,0.0448029,1562.4,1562.3,32.23952488]
[1673952745680,0.0448029,1562.4,1562.3,13.36913482]
[1673952745823,0.0448029,1562.4,1562.3,32.57156482]
[1673952746038,0.0448029,1562.4,1562.3,31.57156482]
[1673952746917,1.2388029,1562.4,1562.3,25.13428958]
[1673952747150,1.2388029,1562.4,1562.3,20.56624964]
[1673952752763,0.0448029,1562.4,1562.3,20.56624964]
[1673952757234,1.2388029,1562.4,1562.3,20.56624964]
[1673952757458,0.0448029,1562.4,1562.3,20.56624964]
[1673952760244,0.9999597,1562.4,1562.3,20.56624964]
[1673952761101,0.0448029,1562.4,1562.3,20.56624964]
[1673952762256,0.0448029,1562.4,1562.3,27.0596966]
[1673952762679,0.0448029,1562.4,1562.3,30.17632067]
[1673952763769,0.0448029,1562.4,1562.3,31.41232067]
[1673952768556,0.0448029,1562.4,1562.3,27.91887371]
[1673952770451,0.0448029,1562.4,1562.3,26.68287371]
[1673952771815,2.58802771,1562.4,1562.3,26.68287371]
[1673952777100,2.59002771,1562.4,1562.3,26.68087371]
[1673952777289,2.58802771,1562.4,1562.3,26.68287371]
[1673952779012,2.58802771,1562.4,1562.3,30.93518308]
[1673952779013,0.0448029,1562.4,1562.3,30.93518308]
[1673952780240,0.0448029,1562.4,1562.3,30.93318308]
[1673952780447,0.0448029,1562.4,1562.3,30.93518308]
[1673952784774,0.9999597,1562.4,1562.3,30.93518308]
[1673952785010,2.5880032,1562.4,1562.3,30.93518308]
[1673952787062,0.0448029,1562.4,1562.3,31.36379286]
[1673952787924,0.0448029,1562.4,1562.3,30.93318308]
[1673952788115,0.0448029,1562.4,1562.3,30.93518308]
[1673952789943,0.0448029,1562.4,1562.3,32.40418308]
[1673952793096,1.08229503,1562.5,1562.3,32.40418308]
[1673952793253,1.08229503,1562.5,1562.4,3.0]
[1673952793471,2.67027928,1562.5,1562.4,22.2012]
[1673952793776,2.67027928,1562.5,1562.4,26.14539595]
[1673952794035,2.67027928,1562.5,1562.4,27.44539595]
[1673952795251,0.12713823,1562.5,1562.4,27.44539595]
[1673952795669,1.08229503,1562.5,1562.4,27.44539595]
[1673952795879,0.12713823,1562.5,1562.4,27.44539595]
[1673952796142,0.12713823,1562.5,1562.4,30.56202002]
[1673952796353,0.12713823,1562.5,1562.4,32.46245989]
[1673952796514,0.12713823,1562.5,1562.4,35.21755176]
[1673952797932,0.12713823,1562.5,1562.4,36.6558808]
[1673952798300,0.12713823,1562.5,1562.4,35.69782887]
[1673952798941,0.12713823,1562.5,1562.4,36.65560006]
[1673952799374,0.12713823,1562.5,1562.4,35.21794342]
[1673952801279,0.12713823,1562.5,1562.4,34.8899794]
[1673952801449,0.12713823,1562.5,1562.4,33.93153581]
[1673952801821,0.12713823,1562.5,1562.4,34.8899794]
[1673952803404,0.12103108,1562.6,1562.5,1.0]
[1673952803566,0.12103108,1562.6,1562.5,30.18745894]
[1673952803764,0.12103108,1562.6,1562.5,30.58331852]
[1673952804178,0.12103108,1562.6,1562.5,33.59957852]
[1673952804389,0.12103108,1562.6,1562.5,34.89957852]
[1673952805243,0.12103108,1562.6,1562.5,35.56053858]
[1673952805449,0.12103108,1562.6,1562.5,34.62606802]
[1673952805696,0.12103108,1562.6,1562.5,34.95810796]
[1673952805926,0.12103108,1562.6,1562.5,35.91546852]
[1673952806632,0.12103108,1562.6,1562.5,34.95810796]
[1673952806842,0.12103108,1562.6,1562.5,35.91546852]
[1673952807268,0.12103108,1562.6,1562.5,34.95810796]
[1673952808168,0.12103108,1562.6,1562.5,34.99864796]
[1673952808384,0.12103108,1562.6,1562.5,33.34120809]
[1673952808593,0.12103108,1562.6,1562.5,33.26151809]
[1673952809078,0.12103108,1562.6,1562.5,23.89585958]
[1673952809224,1.31503108,1562.6,1562.5,20.56381964]
[1673952809593,1.79523108,1562.6,1562.5,20.56381964]
[1673952809968,1.31503108,1562.6,1562.5,20.56381964]
[1673952810234,0.12103108,1562.6,1562.5,20.56381964]
[1673952810591,0.12103108,1562.6,1562.5,23.56381964]
[1673952812223,1.38838772,1562.6,1562.5,23.56381964]
[1673952812393,1.38838772,1562.6,1562.5,20.56381964]
[1673952813385,1.39038772,1562.6,1562.5,20.56181964]
[1673952813602,1.38838772,1562.6,1562.5,20.56381964]
[1673952814859,1.31503108,1562.6,1562.5,20.56381964]
[1673952821945,1.31503108,1562.6,1562.5,20.56381964]
[1673952822537,0.12103108,1562.6,1562.5,20.56381964]
[1673952827827,0.12103108,1562.6,1562.5,23.68044371]
[1673952828040,0.11884059,1562.6,1562.5,26.68044371]
[1673952828260,0.11884059,1562.6,1562.5,30.25282939]
[1673952828412,0.11884059,1562.6,1562.5,31.0427647]
[1673952830097,0.11884059,1562.6,1562.5,30.58486933]
[1673952830873,0.11884059,1562.6,1562.5,31.0427695]
[1673952831283,0.11884059,1562.6,1562.5,30.58486933]
[1673952831461,0.11884059,1562.6,1562.5,31.04272751]
[1673952831835,0.11884059,1562.6,1562.5,30.71068757]
[1673952832334,0.11884059,1562.6,1562.5,30.25282939]
[1673952833881,0.11884059,1562.6,1562.5,26.68044371]
[1673952834091,0.11884059,1562.6,1562.5,23.56381964]
[1673952837513,1.31284059,1562.6,1562.5,23.56381964]
[1673952838560,0.11884059,1562.6,1562.5,23.56381964]
[1673952847369,2.66186327,1562.6,1562.5,23.56381964]
[1673952847597,2.66186326,1562.6,1562.5,23.56381964]
[1673952849297,2.66186326,1562.6,1562.5,7.76381964]
[1673952849298,4.523947,1562.6,1562.5,7.76381964]
[1673952849516,6.96244306,1562.6,1562.5,1.36381964]
[1673952849665,7.05945306,1562.6,1562.5,1.3]
[1673952850144,11.05508818,1562.6,1562.5,1.3]
[1673952850323,7.55508818,1562.6,1562.5,0.372]
[1673952851881,9.46707533,1562.6,1562.5,0.372]
[1673952852242,9.46707533,1562.6,1562.3,6.46433964]
[1673952852452,2.18699645,1562.4,1562.3,6.46433964]
[1673952852774,3.77486232,1562.4,1562.3,6.46433964]
[1673952853369,3.77486232,1562.4,1562.3,0.06381964]
[1673952853558,3.80587232,1562.4,1562.2,6.46491964]
[1673952853883,2.56058368,1562.3,1562.2,0.06381964]
[1673952854092,2.56058368,1562.3,1562.1,0.06381964]
[1673952854093,6.84482154,1562.3,1562.1,0.06381964]
[1673952854303,6.84482154,1562.3,1562.0,6.46551964]
[1673952854304,2.48301,1562.2,1562.0,6.46551964]
[1673952854519,1.223,1562.1,1562.0,6.46551964]
[1673952854724,1.471501,1562.1,1562.0,6.46551964]
[1673952855558,1.471501,1562.1,1562.0,0.06381964]
[1673952855763,1.502511,1562.1,1561.9,0.06381964]
[1673952855973,2.44601,1562.0,1561.8,9.46642964]
[1673952856238,0.244601,1561.9,1561.8,9.46642964]
[1673952856394,2.44601,1562.0,1561.8,15.86928964]
[1673952859935,1.22501,1562.0,1561.8,15.86928964]
[1673952864008,1.22501,1562.0,1561.8,22.75264964]
[1673952864009,0.03101,1562.0,1561.8,22.75264964]
[1673952864223,0.03101,1562.0,1561.9,4.0]
[1673952864488,0.03101,1562.0,1561.9,25.88261496]
[1673952864701,0.03101,1562.0,1561.9,25.9464346]
[1673952866440,0.03101,1562.0,1561.9,25.9444346]
[1673952866757,0.03101,1562.0,1561.9,25.9464346]
[1673952866973,0.03101,1562.0,1561.9,26.4268346]
[1673952867387,10.002,1562.3,1562.1,19.20489]
[1673952867599,0.066,1562.3,1562.1,19.26870964]
[1673952867961,9.5897,1562.4,1562.1,19.26870964]
[1673952868113,10.86006965,1562.4,1562.1,19.26870964]
[1673952870551,10.86006965,1562.4,1562.2,3.11662407]
[1673952870552,1.532,1562.4,1562.2,3.11662407]
[1673952870772,13.64470775,1562.6,1562.4,19.2012]
[1673952870773,0.18484059,1562.6,1562.4,19.2012]
[1673952871027,0.18484059,1562.6,1562.4,19.26501964]
[1673952871028,0.11884059,1562.6,1562.4,19.26501964]
[1673952871751,0.11884059,1562.6,1562.4,25.30791608]
[1673952872208,0.11884059,1562.6,1562.4,25.78821608]
[1673952872420,0.11884059,1562.6,1562.5,3.11662407]
[1673952872668,4.059e-05,1562.6,1562.5,19.39682407]
[1673952872836,4.059e-05,1562.6,1562.5,19.78373067]
[1673952873064,4.059e-05,1562.6,1562.5,23.48151097]
[1673952873333,4.059e-05,1562.6,1562.5,20.04179994]
[1673952873546,4.059e-05,1562.6,1562.5,16.34401964]
[1673952875144,4.059e-05,1562.6,1562.5,22.74401964]
[1673952875374,0.13233528,1562.7,1562.5,25.86064371]
[1673952875539,0.13233528,1562.7,1562.6,3.0]
[1673952875749,0.13233528,1562.7,1562.6,22.19877]
[1673952875972,0.13233528,1562.7,1562.6,25.96873101]
[1673952878218,0.13233528,1562.7,1562.6,25.48853101]
[1673952880620,0.13233528,1562.7,1562.6,29.08535508]
[1673952880859,0.16374203,1563.0,1562.7,1.0]
[1673952881017,0.16374203,1563.0,1562.8,27.16808]
[1673952881215,0.16374203,1563.0,1562.9,22.19508]
[1673952881420,0.16374203,1563.0,1562.9,22.25889964]
[1673952883051,0.16374203,1563.0,1562.9,25.37552371]
[1673952883365,0.16374203,1563.0,1562.9,25.85562371]
[1673952883688,0.16374203,1563.0,1562.9,29.23836308]
[1673952883855,4.203e-05,1563.0,1562.9,29.23836308]
[1673952884686,4.203e-05,1563.0,1562.9,28.75826308]
[1673952887642,4.203e-05,1563.0,1562.9,29.23836308]
[1673952888207,4.203e-05,1563.0,1562.9,28.75826308]
[1673952890556,4.203e-05,1563.0,1562.9,29.23836308]
[1673952893030,0.14852819,1563.1,1563.0,1.0]
[1673952893292,0.14852819,1563.1,1563.0,23.21768631]
[1673952893430,0.14852819,1563.1,1563.0,26.28150595]
[1673952893619,0.14852819,1563.1,1563.0,25.28150595]
[1673952894000,0.14852819,1563.1,1563.0,22.25766964]
[1673952898252,0.14852819,1563.1,1563.0,25.37429371]
[1673952898663,2.819e-05,1563.1,1563.0,27.32439371]